[Event "*** Titled Tuesday Blitz"]
[Site "Chess.com"]
[Date "2020.12.29"]
[Round "2"]
[White "Loy_Konstantin"]
[Black "bylavochka"]
[Result "1-0"]
[WhiteElo "2404"]
[BlackElo "2142"]
[TimeControl "180+1"]
[EndTime "10:20:06 PST"]
[Termination "Loy_Konstantin won by resignation"]

1. e4 {[%clk 0:02:52.9]} 1... c5 {[%clk 0:03:00.2]} 2. Nf3 {[%clk 0:02:51.3]}
2... d6 {[%clk 0:03:00.4]} 3. d4 {[%clk 0:02:51]} 3... cxd4 {[%clk 0:03:01.3]}
4. Qxd4 {[%clk 0:02:50.6]} 4... Nc6 {[%clk 0:03:00.8]} 5. Bb5 {[%clk 0:02:49.8]}
5... Qa5+ {[%clk 0:03:00.2]} 6. Nc3 {[%clk 0:02:49.4]} 6... Bd7 {[%clk
0:02:59.6]} 7. Bxc6 {[%clk 0:02:45.7]} 7... bxc6 {[%clk 0:03:00.5]} 8. e5 {[%clk
0:02:33.1]} 8... d5 {[%clk 0:02:57.6]} 9. Bd2 {[%clk 0:02:27.3]} 9... e6 {[%clk
0:02:54]} 10. Na4 {[%clk 0:01:52]} 10... Qb5 {[%clk 0:02:34.4]} 11. Nc3 {[%clk
0:01:43.7]} 11... Qc5 {[%clk 0:02:26.7]} 12. O-O {[%clk 0:01:31.8]} 12... Qxd4
{[%clk 0:01:55]} 13. Nxd4 {[%clk 0:01:32.7]} 13... Rb8 {[%clk 0:01:50.1]} 14. b3
{[%clk 0:01:27.3]} 14... c5 {[%clk 0:01:49.5]} 15. Nf3 {[%clk 0:01:23.9]} 15...
Ne7 {[%clk 0:01:42.1]} 16. Rfe1 {[%clk 0:01:20.2]} 16... h5 {[%clk 0:01:32.5]}
17. Ne2 {[%clk 0:01:09.9]} 17... Nf5 {[%clk 0:01:00]} 18. Ng3 {[%clk 0:01:09.1]}
18... Nxg3 {[%clk 0:00:40.9]} 19. hxg3 {[%clk 0:01:10]} 19... Be7 {[%clk
0:00:40.1]} 20. Bg5 {[%clk 0:01:07.3]} 20... f6 {[%clk 0:00:37.9]} 21. exf6
{[%clk 0:01:01.6]} 21... gxf6 {[%clk 0:00:38.8]} 22. Bf4 {[%clk 0:00:37.2]}
22... e5 {[%clk 0:00:38.4]} 23. Nxe5 {[%clk 0:00:37]} 23... fxe5 {[%clk
0:00:39.3]} 24. Bxe5 {[%clk 0:00:37.9]} 24... Kf7 {[%clk 0:00:39.8]} 25. Bxh8
{[%clk 0:00:36.6]} 25... Rxh8 {[%clk 0:00:40.7]} 26. Rad1 {[%clk 0:00:35]} 26...
Bc6 {[%clk 0:00:33.8]} 27. Rd3 {[%clk 0:00:30.6]} 27... d4 {[%clk 0:00:29.9]}
28. a4 {[%clk 0:00:29.3]} 28... Bf6 {[%clk 0:00:19.9]} 29. f3 {[%clk 0:00:22.2]}
29... Rd8 {[%clk 0:00:08.2]} 30. Kf2 {[%clk 0:00:21]} 30... Bd7 {[%clk
0:00:08.3]} 31. Rd2 {[%clk 0:00:18]} 31... Bf5 {[%clk 0:00:08.5]} 32. Rh1 {[%clk
0:00:17.9]} 32... Bg6 {[%clk 0:00:08.2]} 33. Re2 {[%clk 0:00:12.8]} 33... c4
{[%clk 0:00:06.2]} 34. bxc4 {[%clk 0:00:11.3]} 34... Rc8 {[%clk 0:00:05.7]} 35.
Rb1 {[%clk 0:00:07.4]} 35... Rxc4 {[%clk 0:00:05.8]} 36. Rb7+ {[%clk 0:00:07.4]}
36... Kg8 {[%clk 0:00:06.1]} 37. Rxa7 {[%clk 0:00:06.9]} 37... Rxc2 {[%clk
0:00:06]} 38. Rxc2 {[%clk 0:00:07]} 38... Bxc2 {[%clk 0:00:06.9]} 39. Rd7 {[%clk
0:00:04.9]} 39... d3 {[%clk 0:00:07]} 40. a5 {[%clk 0:00:04.9]} 40... Bc3 {[%clk
0:00:05.3]} 41. a6 {[%clk 0:00:04]} 41... d2 {[%clk 0:00:03.1]} 42. Ke2 {[%clk
0:00:04]} 42... d1=Q+ {[%clk 0:00:02.9]} 43. Rxd1 {[%clk 0:00:03.8]} 43... Bxd1+
{[%clk 0:00:03.8]} 44. Kxd1 {[%clk 0:00:04.2]} 44... Bd4 {[%clk 0:00:04.7]} 45.
Ke2 {[%clk 0:00:04.6]} 45... Ba7 {[%clk 0:00:05.6]} 46. Kd3 {[%clk 0:00:04.4]}
46... Kg7 {[%clk 0:00:05.9]} 47. Ke4 {[%clk 0:00:04.6]} 47... Kg6 {[%clk
0:00:05.9]} 48. Kf4 {[%clk 0:00:04.6]} 48... Kf6 {[%clk 0:00:05.2]} 49. g4
{[%clk 0:00:04]} 49... hxg4 {[%clk 0:00:05.3]} 50. Kxg4 {[%clk 0:00:04.3]} 50...
Kg6 {[%clk 0:00:05.3]} 51. Kf4 {[%clk 0:00:04.6]} 51... Kf6 {[%clk 0:00:05.4]}
52. g3 {[%clk 0:00:04.8]} 52... Kg6 {[%clk 0:00:05.6]} 53. Kg4 {[%clk
0:00:05.3]} 53... Kf6 {[%clk 0:00:05.9]} 54. f4 {[%clk 0:00:05.9]} 54... Kg6
{[%clk 0:00:05.2]} 55. Kf3 {[%clk 0:00:06.3]} 55... Kf6 {[%clk 0:00:04.6]} 56.
g4 {[%clk 0:00:06.8]} 56... Kg6 {[%clk 0:00:04.7]} 57. Kg3 {[%clk 0:00:06.5]}
57... Kf6 {[%clk 0:00:04.8]} 58. Kf3 {[%clk 0:00:06.5]} 58... Kg6 {[%clk
0:00:05.1]} 59. Ke4 {[%clk 0:00:07.4]} 59... Kf6 {[%clk 0:00:05.2]} 60. g5+
{[%clk 0:00:07.7]} 60... Ke6 {[%clk 0:00:05.2]} 61. f5+ {[%clk 0:00:07.5]} 61...
Kd6 {[%clk 0:00:05.6]} 62. f6 {[%clk 0:00:07.4]} 62... Ke6 {[%clk 0:00:05.1]}
63. Kf4 {[%clk 0:00:07.8]} 63... Bb8+ {[%clk 0:00:05]} 64. Kg4 {[%clk
0:00:07.9]} 64... Kf7 {[%clk 0:00:05.3]} 65. Kf5 {[%clk 0:00:07.9]} 65... Ba7
{[%clk 0:00:04.3]} 66. g6+ {[%clk 0:00:08.2]} 66... Kf8 {[%clk 0:00:04.6]} 67.
Ke6 {[%clk 0:00:08.3]} 67... Bc5 {[%clk 0:00:04.5]} 68. g7+ {[%clk 0:00:07.8]}
68... Kg8 {[%clk 0:00:04]} 69. Kd5 {[%clk 0:00:06.7]} 69... Bf2 {[%clk
0:00:02.7]} 70. Ke5 {[%clk 0:00:05.6]} 70... Kf7 {[%clk 0:00:02.6]} 71. Kf5
{[%clk 0:00:05.7]} 71... Bd4 {[%clk 0:00:01.5]} 72. Ke4 {[%clk 0:00:04.2]} 72...
Ba7 {[%clk 0:00:01.6]} 73. Ke5 {[%clk 0:00:04]} 73... Bb6 {[%clk 0:00:02.2]} 74.
Kf5 {[%clk 0:00:03.9]} 74... Ba7 {[%clk 0:00:02.5]} 75. Kg5 {[%clk 0:00:03.8]}
75... Bb6 {[%clk 0:00:02.9]} 76. Kh6 {[%clk 0:00:03.9]} 76... Be3+ {[%clk
0:00:03]} 77. Kh7 {[%clk 0:00:04]} 77... Ba7 {[%clk 0:00:02.6]} 78. g8=Q+ {[%clk
0:00:04.2]} 78... Kxf6 {[%clk 0:00:02.2]} 79. Qg7+ {[%clk 0:00:04.5]} 1-0

[Event "*** Titled Tuesday Blitz"]
[Site "Chess.com"]
[Date "2020.12.29"]
[Round "2"]
[White "ChampStan"]
[Black "kai_nov"]
[Result "1-0"]
[WhiteElo "2179"]
[BlackElo "2391"]
[TimeControl "180+1"]
[EndTime "10:20:14 PST"]
[Termination "ChampStan won by checkmate"]

1. d4 {[%clk 0:03:00.9]} 1... d5 {[%clk 0:02:55.8]} 2. c4 {[%clk 0:03:00.1]}
2... e6 {[%clk 0:02:55.8]} 3. Nc3 {[%clk 0:02:57]} 3... c6 {[%clk 0:02:55.6]} 4.
e4 {[%clk 0:02:55.3]} 4... dxe4 {[%clk 0:02:53.9]} 5. Nxe4 {[%clk 0:02:55.2]}
5... Bb4+ {[%clk 0:02:53.1]} 6. Bd2 {[%clk 0:02:55.4]} 6... Qxd4 {[%clk
0:02:52.3]} 7. Bxb4 {[%clk 0:02:55.1]} 7... Qxe4+ {[%clk 0:02:50.7]} 8. Ne2
{[%clk 0:02:55.2]} 8... Na6 {[%clk 0:02:39.1]} 9. Bf8 {[%clk 0:02:52.2]} 9...
Ne7 {[%clk 0:02:35]} 10. Bxg7 {[%clk 0:02:51.5]} 10... Rg8 {[%clk 0:02:34.3]}
11. Bc3 {[%clk 0:02:50.6]} 11... e5 {[%clk 0:02:17]} 12. f3 {[%clk 0:02:28.2]}
12... Qxc4 {[%clk 0:01:44]} 13. Nd4 {[%clk 0:02:01.1]} 13... Qd5 {[%clk
0:01:35.3]} 14. Nb3 {[%clk 0:02:00.6]} 14... f6 {[%clk 0:01:23.6]} 15. Bxa6
{[%clk 0:01:53.7]} 15... bxa6 {[%clk 0:01:22.2]} 16. Qe2 {[%clk 0:01:53.8]}
16... Be6 {[%clk 0:01:02]} 17. Rd1 {[%clk 0:01:51.5]} 17... Qc4 {[%clk
0:00:58.8]} 18. Qxc4 {[%clk 0:01:27.7]} 18... Bxc4 {[%clk 0:00:58.4]} 19. Kf2
{[%clk 0:01:22.5]} 19... Bxb3 {[%clk 0:00:44.7]} 20. axb3 {[%clk 0:01:23.4]}
20... Nd5 {[%clk 0:00:44.6]} 21. Ra1 {[%clk 0:01:22.7]} 21... Kd7 {[%clk
0:00:31.2]} 22. Rxa6 {[%clk 0:01:20.2]} 22... Rgb8 {[%clk 0:00:21.8]} 23. Rha1
{[%clk 0:01:12]} 23... Rxb3 {[%clk 0:00:21.7]} 24. Rxa7+ {[%clk 0:01:10.6]}
24... Rxa7 {[%clk 0:00:22.1]} 25. Rxa7+ {[%clk 0:01:07.8]} 25... Ke6 {[%clk
0:00:22.6]} 26. Rxh7 {[%clk 0:00:55.8]} 26... Nxc3 {[%clk 0:00:22.6]} 27. bxc3
{[%clk 0:00:55.9]} 27... Rxc3 {[%clk 0:00:22.7]} 28. h4 {[%clk 0:00:53.6]} 28...
Rc1 {[%clk 0:00:20.2]} 29. h5 {[%clk 0:00:50.3]} 29... c5 {[%clk 0:00:19.7]} 30.
Rc7 {[%clk 0:00:44.7]} 30... Rh1 {[%clk 0:00:15.6]} 31. Rxc5 {[%clk 0:00:36.6]}
31... Rxh5 {[%clk 0:00:14.9]} 32. g4 {[%clk 0:00:36.8]} 32... Rh2+ {[%clk
0:00:14.2]} 33. Kg3 {[%clk 0:00:35.8]} 33... Rd2 {[%clk 0:00:14.6]} 34. Rc6+
{[%clk 0:00:34.8]} 34... Rd6 {[%clk 0:00:14.6]} 35. Rc8 {[%clk 0:00:32]} 35...
Ra6 {[%clk 0:00:13.7]} 36. Rh8 {[%clk 0:00:28.9]} 36... Ra3 {[%clk 0:00:13.5]}
37. Kf2 {[%clk 0:00:28.7]} 37... Kf7 {[%clk 0:00:13.1]} 38. Rh5 {[%clk
0:00:24.5]} 38... Kg6 {[%clk 0:00:12.6]} 39. Rf5 {[%clk 0:00:24.3]} 39... Rc3
{[%clk 0:00:12.5]} 40. Kg2 {[%clk 0:00:23.6]} 40... Rc2+ {[%clk 0:00:12.3]} 41.
Kg3 {[%clk 0:00:23.3]} 41... Rc3 {[%clk 0:00:12.7]} 42. Kf2 {[%clk 0:00:23.4]}
42... Rb3 {[%clk 0:00:13]} 43. Kg2 {[%clk 0:00:22.8]} 43... Rb4 {[%clk 0:00:13]}
44. Kg3 {[%clk 0:00:22.1]} 44... Rb3 {[%clk 0:00:12.2]} 45. Kf2 {[%clk
0:00:21.4]} 45... Ra3 {[%clk 0:00:12.2]} 46. Kg2 {[%clk 0:00:21.1]} 46... Ra4
{[%clk 0:00:12.1]} 47. Kg3 {[%clk 0:00:19.4]} 47... e4 {[%clk 0:00:11.8]} 48.
Rf4 {[%clk 0:00:17.3]} 48... Ra1 {[%clk 0:00:07.1]} 49. Rxe4 {[%clk 0:00:14.9]}
49... Kg5 {[%clk 0:00:07.1]} 50. f4+ {[%clk 0:00:13]} 50... Kg6 {[%clk
0:00:07.1]} 51. Re2 {[%clk 0:00:13.2]} 51... Ra3+ {[%clk 0:00:06.5]} 52. Kh4
{[%clk 0:00:13.1]} 52... Ra4 {[%clk 0:00:06.3]} 53. f5+ {[%clk 0:00:12.1]} 53...
Kh6 {[%clk 0:00:06.5]} 54. Re6 {[%clk 0:00:11.8]} 54... Kg7 {[%clk 0:00:05.8]}
55. Re7+ {[%clk 0:00:11.6]} 55... Kf8 {[%clk 0:00:05.6]} 56. Rb7 {[%clk
0:00:11.1]} 56... Rc4 {[%clk 0:00:04.1]} 57. Kh5 {[%clk 0:00:10.8]} 57... Ke8
{[%clk 0:00:04]} 58. Ra7 {[%clk 0:00:08.9]} 58... Rb4 {[%clk 0:00:03.8]} 59. Kg6
{[%clk 0:00:08.4]} 59... Rxg4+ {[%clk 0:00:04.1]} 60. Kxf6 {[%clk 0:00:08.4]}
60... Rb4 {[%clk 0:00:04.7]} 61. Ra8+ {[%clk 0:00:07.9]} 61... Kd7 {[%clk
0:00:05.1]} 62. Kg7 {[%clk 0:00:07.8]} 62... Rg4+ {[%clk 0:00:04.3]} 63. Kf7
{[%clk 0:00:07.5]} 63... Rb4 {[%clk 0:00:04.2]} 64. f6 {[%clk 0:00:07.3]} 64...
Rb7 {[%clk 0:00:04.5]} 65. Re8 {[%clk 0:00:04.7]} 65... Kd6+ {[%clk 0:00:04.6]}
66. Re7 {[%clk 0:00:04.9]} 66... Rb8 {[%clk 0:00:05.2]} 67. Kg7 {[%clk 0:00:05]}
67... Rc8 {[%clk 0:00:05.2]} 68. Re2 {[%clk 0:00:05]} 68... Rb8 {[%clk
0:00:05.1]} 69. f7 {[%clk 0:00:05]} 69... Rb1 {[%clk 0:00:05.1]} 70. f8=Q+
{[%clk 0:00:04.4]} 70... Kd5 {[%clk 0:00:05.6]} 71. Qf5+ {[%clk 0:00:04.5]}
71... Kd4 {[%clk 0:00:05.6]} 72. Qxb1 {[%clk 0:00:05.4]} 72... Kc3 {[%clk
0:00:06]} 73. Rc2+ {[%clk 0:00:05.6]} 73... Kd3 {[%clk 0:00:06.3]} 74. Qd1+
{[%clk 0:00:06.5]} 74... Ke3 {[%clk 0:00:06.9]} 75. Re2+ {[%clk 0:00:06.6]}
75... Kf3 {[%clk 0:00:07.5]} 76. Qf1+ {[%clk 0:00:07]} 76... Kg3 {[%clk
0:00:08.2]} 77. Rg2+ {[%clk 0:00:07.8]} 77... Kh3 {[%clk 0:00:08.8]} 78. Qh1#
{[%clk 0:00:08.5]} 1-0

[Event "*** Titled Tuesday Blitz"]
[Site "Chess.com"]
[Date "2020.12.29"]
[Round "2"]
[White "mbachez"]
[Black "SaraciNderim"]
[Result "0-1"]
[WhiteElo "2539"]
[BlackElo "2834"]
[TimeControl "180+1"]
[EndTime "10:20:24 PST"]
[Termination "SaraciNderim won by resignation"]

1. e4 {[%clk 0:03:00.9]} 1... e5 {[%clk 0:02:59.6]} 2. Nf3 {[%clk 0:03:00.4]}
2... Nc6 {[%clk 0:02:59.8]} 3. Bb5 {[%clk 0:03:00.6]} 3... Nf6 {[%clk 0:02:58]}
4. d3 {[%clk 0:02:57.3]} 4... Bc5 {[%clk 0:02:57.3]} 5. O-O {[%clk 0:02:55.4]}
5... Nd4 {[%clk 0:02:56.5]} 6. Bc4 {[%clk 0:02:54.3]} 6... d6 {[%clk 0:02:51.7]}
7. c3 {[%clk 0:02:53.5]} 7... Nxf3+ {[%clk 0:02:50.7]} 8. Qxf3 {[%clk
0:02:53.8]} 8... h6 {[%clk 0:02:39.8]} 9. h3 {[%clk 0:02:48.3]} 9... O-O {[%clk
0:02:36.5]} 10. Nd2 {[%clk 0:02:46]} 10... Be6 {[%clk 0:02:35.6]} 11. Qg3 {[%clk
0:02:40.1]} 11... Nh5 {[%clk 0:02:31]} 12. Qf3 {[%clk 0:02:38.4]} 12... Nf4
{[%clk 0:02:23.1]} 13. Nb3 {[%clk 0:02:37.5]} 13... Bxc4 {[%clk 0:02:18.1]} 14.
dxc4 {[%clk 0:02:32.3]} 14... Ne6 {[%clk 0:02:16.1]} 15. Qg4 {[%clk 0:02:26.1]}
15... Qf6 {[%clk 0:02:12.4]} 16. Be3 {[%clk 0:02:25.4]} 16... Bxe3 {[%clk
0:02:03.7]} 17. fxe3 {[%clk 0:02:25.2]} 17... Qg6 {[%clk 0:02:02.8]} 18. Qf5
{[%clk 0:02:22.1]} 18... a5 {[%clk 0:01:52.1]} 19. Rf2 {[%clk 0:02:13.2]} 19...
a4 {[%clk 0:01:50]} 20. Nd2 {[%clk 0:02:12.4]} 20... Nc5 {[%clk 0:01:49.4]} 21.
Raf1 {[%clk 0:02:11.2]} 21... Nd3 {[%clk 0:01:44]} 22. Rf3 {[%clk 0:02:08.7]}
22... Qxf5 {[%clk 0:01:43]} 23. exf5 {[%clk 0:02:04.7]} 23... Nxb2 {[%clk
0:01:42.8]} 24. Rb1 {[%clk 0:02:03.6]} 24... a3 {[%clk 0:01:39.6]} 25. f6 {[%clk
0:02:03.8]} 25... g6 {[%clk 0:01:33.6]} 26. Kf2 {[%clk 0:02:02.1]} 26... Ra4
{[%clk 0:01:33]} 27. Ke2 {[%clk 0:01:59.6]} 27... b6 {[%clk 0:01:31.9]} 28. Rg3
{[%clk 0:01:51.6]} 28... Rfa8 {[%clk 0:01:28.7]} 29. Rg4 {[%clk 0:01:51.1]}
29... Kf8 {[%clk 0:01:27.2]} 30. Rf1 {[%clk 0:01:40.9]} 30... Ke8 {[%clk
0:01:25.7]} 31. Rh4 {[%clk 0:01:39.7]} 31... h5 {[%clk 0:01:24.5]} 32. g4 {[%clk
0:01:39.6]} 32... hxg4 {[%clk 0:01:18.9]} 33. hxg4 {[%clk 0:01:34.9]} 33... Kd7
{[%clk 0:01:07.3]} 34. g5 {[%clk 0:01:34]} 34... Ke6 {[%clk 0:01:00.9]} 35. Rfh1
{[%clk 0:01:33.1]} 35... Kf5 {[%clk 0:00:40]} 36. Rf1+ {[%clk 0:01:25.9]} 36...
Ke6 {[%clk 0:00:39.8]} 37. Rfh1 {[%clk 0:01:25]} 37... R8a5 {[%clk 0:00:37]} 38.
Rh8 {[%clk 0:01:23.5]} 38... Ra8 {[%clk 0:00:35.5]} 39. e4 {[%clk 0:01:19.2]}
39... Kd7 {[%clk 0:00:27]} 40. R1h7 {[%clk 0:01:17.3]} 40... Ke6 {[%clk
0:00:25.3]} 41. Rh4 {[%clk 0:01:12.9]} 41... c6 {[%clk 0:00:25.3]} 42. R4h7
{[%clk 0:01:07.8]} 42... b5 {[%clk 0:00:25.3]} 43. cxb5 {[%clk 0:01:04.5]} 43...
cxb5 {[%clk 0:00:26.2]} 44. Ke3 {[%clk 0:01:00.5]} 44... Nd1+ {[%clk 0:00:23.9]}
45. Kd3 {[%clk 0:01:00.3]} 45... Nb2+ {[%clk 0:00:23.2]} 46. Kc2 {[%clk
0:00:59.7]} 46... Nc4 {[%clk 0:00:23.2]} 47. Nxc4 {[%clk 0:00:59.6]} 47... bxc4
{[%clk 0:00:23.2]} 48. Rh1 {[%clk 0:00:55.5]} 48... d5 {[%clk 0:00:22.5]} 49.
exd5+ {[%clk 0:00:54.3]} 49... Kxd5 {[%clk 0:00:23.4]} 50. Rd1+ {[%clk
0:00:54.3]} 50... Ke6 {[%clk 0:00:23.5]} 51. Rdd8 {[%clk 0:00:52.2]} 51... R8a7
{[%clk 0:00:21]} 52. Rhe8+ {[%clk 0:00:49.9]} 52... Kf5 {[%clk 0:00:21.3]} 53.
Rd5 {[%clk 0:00:48.6]} 53... Kxg5 {[%clk 0:00:21.4]} 54. Rexe5+ {[%clk
0:00:46.1]} 54... Kxf6 {[%clk 0:00:21.4]} 55. Re4 {[%clk 0:00:46.5]} 55... Rb7
{[%clk 0:00:21]} 56. Kc1 {[%clk 0:00:42.7]} 56... Rb2 {[%clk 0:00:20]} 57. Rf4+
{[%clk 0:00:35.9]} 57... Ke6 {[%clk 0:00:20.1]} 58. Rdd4 {[%clk 0:00:33.7]}
58... f5 {[%clk 0:00:19.8]} 59. Rxc4 {[%clk 0:00:31.5]} 59... Rxc4 {[%clk
0:00:20.6]} 60. Rxc4 {[%clk 0:00:31.6]} 60... Rxa2 {[%clk 0:00:21.5]} 61. Rc6+
{[%clk 0:00:32.1]} 61... Kd5 {[%clk 0:00:20.9]} 62. Rxg6 {[%clk 0:00:30.6]}
62... Rf2 {[%clk 0:00:20.7]} 63. Kb1 {[%clk 0:00:27.6]} 63... Kc4 {[%clk
0:00:20.8]} 64. Rc6+ {[%clk 0:00:19.2]} 64... Kb3 {[%clk 0:00:20.9]} 65. Rb6+
{[%clk 0:00:19.6]} 65... Kxc3 {[%clk 0:00:21.2]} 66. Rc6+ {[%clk 0:00:19.6]}
66... Kd4 {[%clk 0:00:21]} 67. Ra6 {[%clk 0:00:17.6]} 67... Rb2+ {[%clk
0:00:19.9]} 68. Ka1 {[%clk 0:00:17.6]} 68... Rb3 {[%clk 0:00:20.1]} 69. Rf6
{[%clk 0:00:17]} 69... Ke4 {[%clk 0:00:18.9]} 70. Rf8 {[%clk 0:00:17]} 70... f4
{[%clk 0:00:18.7]} 71. Ka2 {[%clk 0:00:15.8]} 71... Rd3 {[%clk 0:00:18.1]} 72.
Re8+ {[%clk 0:00:14.9]} 72... Kf3 {[%clk 0:00:18.1]} 73. Rh8 {[%clk 0:00:14.8]}
73... Ke3 {[%clk 0:00:18]} 74. Rh3+ {[%clk 0:00:13.1]} 74... f3 {[%clk 0:00:18]}
75. Rh8 {[%clk 0:00:13.1]} 75... Ke2 {[%clk 0:00:18.1]} 76. Re8+ {[%clk
0:00:13.1]} 76... Re3 {[%clk 0:00:18.8]} 77. Rh8 {[%clk 0:00:11.6]} 77... f2
{[%clk 0:00:18.8]} 0-1

[Event "*** Titled Tuesday Blitz"]
[Site "Chess.com"]
[Date "2020.12.29"]
[Round "2"]
[White "dropstoneDP"]
[Black "Aygehovit1992"]
[Result "1-0"]
[WhiteElo "2952"]
[BlackElo "2593"]
[TimeControl "180+1"]
[EndTime "10:20:57 PST"]
[Termination "dropstoneDP won by resignation"]

1. e4 {[%clk 0:02:59.6]} 1... d6 {[%clk 0:03:00.9]} 2. d4 {[%clk 0:02:58.8]}
2... g6 {[%clk 0:03:01.8]} 3. Nf3 {[%clk 0:02:49.6]} 3... Bg7 {[%clk 0:03:01.5]}
4. a4 {[%clk 0:02:44.6]} 4... Nf6 {[%clk 0:03:00.5]} 5. Nc3 {[%clk 0:02:42.3]}
5... Bg4 {[%clk 0:02:57.9]} 6. h3 {[%clk 0:02:42.3]} 6... Bxf3 {[%clk
0:02:57.3]} 7. Qxf3 {[%clk 0:02:43.2]} 7... Nc6 {[%clk 0:02:58]} 8. d5 {[%clk
0:02:41.4]} 8... Nb4 {[%clk 0:02:55.3]} 9. Qd1 {[%clk 0:02:40.3]} 9... O-O
{[%clk 0:02:42.4]} 10. a5 {[%clk 0:02:38.4]} 10... c6 {[%clk 0:02:41.6]} 11. Bc4
{[%clk 0:02:37]} 11... Rc8 {[%clk 0:02:31.5]} 12. dxc6 {[%clk 0:02:21.6]} 12...
Rxc6 {[%clk 0:02:28.9]} 13. Bb3 {[%clk 0:02:19.7]} 13... Rxc3 {[%clk 0:02:24.7]}
14. bxc3 {[%clk 0:02:18.5]} 14... Nxe4 {[%clk 0:02:24.5]} 15. O-O {[%clk
0:02:03.1]} 15... Nxc3 {[%clk 0:02:23]} 16. Qf3 {[%clk 0:02:01.4]} 16... Ne2+
{[%clk 0:02:05.7]} 17. Qxe2 {[%clk 0:02:00.7]} 17... Bxa1 {[%clk 0:02:06.6]} 18.
Bd2 {[%clk 0:01:49.1]} 18... Qxa5 {[%clk 0:02:00.4]} 19. Bxb4 {[%clk 0:01:20.3]}
19... Qxb4 {[%clk 0:02:01.3]} 20. Rxa1 {[%clk 0:01:20.5]} 20... Qd4 {[%clk
0:01:57.2]} 21. Ra4 {[%clk 0:01:19.5]} 21... Qf6 {[%clk 0:01:19.8]} 22. Rxa7
{[%clk 0:01:18.1]} 22... Rb8 {[%clk 0:01:20.4]} 23. g3 {[%clk 0:01:14.2]} 23...
e6 {[%clk 0:01:19.8]} 24. h4 {[%clk 0:01:10.3]} 24... d5 {[%clk 0:01:19.7]} 25.
Qe3 {[%clk 0:01:00]} 25... h5 {[%clk 0:01:17]} 26. Kg2 {[%clk 0:00:57.8]} 26...
Qf5 {[%clk 0:01:10.8]} 27. Ra4 {[%clk 0:00:45.3]} 27... Qf6 {[%clk 0:00:55.5]}
28. Rb4 {[%clk 0:00:44.7]} 28... b5 {[%clk 0:00:54]} 29. Qc5 {[%clk 0:00:38.4]}
29... Qf5 {[%clk 0:00:44.9]} 30. Rxb5 {[%clk 0:00:35]} 30... Qe4+ {[%clk
0:00:39.2]} 31. Kh2 {[%clk 0:00:34.7]} 31... Rxb5 {[%clk 0:00:39.5]} 32. Qxb5
{[%clk 0:00:35.6]} 32... Qd4 {[%clk 0:00:38.6]} 33. Qb8+ {[%clk 0:00:31.2]}
33... Kg7 {[%clk 0:00:38.8]} 34. Qf4 {[%clk 0:00:31.9]} 34... Qc3 {[%clk
0:00:27.8]} 35. Qe3 {[%clk 0:00:31.4]} 35... Qf6 {[%clk 0:00:26.1]} 36. c3
{[%clk 0:00:30.4]} 36... Qf5 {[%clk 0:00:26.1]} 37. Kg2 {[%clk 0:00:26.9]} 37...
Qb1 {[%clk 0:00:26.1]} 38. Qd4+ {[%clk 0:00:27.1]} 38... Kg8 {[%clk 0:00:25.6]}
39. Bd1 {[%clk 0:00:27.7]} 39... Qb7 {[%clk 0:00:24.6]} 40. Bf3 {[%clk
0:00:27.5]} 40... Qc7 {[%clk 0:00:25.1]} 41. Be2 {[%clk 0:00:25.1]} 41... Qb7
{[%clk 0:00:25.4]} 42. c4 {[%clk 0:00:14.1]} 42... dxc4+ {[%clk 0:00:26.3]} 43.
Kh2 {[%clk 0:00:14.5]} 43... Qb5 {[%clk 0:00:13.8]} 44. Bxc4 {[%clk 0:00:13.6]}
44... Qf5 {[%clk 0:00:14]} 45. Kg2 {[%clk 0:00:12]} 45... Qc2 {[%clk 0:00:13.8]}
46. Qd3 {[%clk 0:00:08.7]} 46... Qb2 {[%clk 0:00:13.7]} 47. Qe2 {[%clk
0:00:08.8]} 47... Qd4 {[%clk 0:00:12.5]} 48. Bd3 {[%clk 0:00:07.9]} 48... Kg7
{[%clk 0:00:11.9]} 49. Qe4 {[%clk 0:00:08.1]} 49... Qa1 {[%clk 0:00:11.7]} 50.
Be2 {[%clk 0:00:08.5]} 50... Qb2 {[%clk 0:00:11.2]} 51. Bf3 {[%clk 0:00:08.2]}
51... Qc3 {[%clk 0:00:10.7]} 52. Qe3 {[%clk 0:00:08.7]} 52... Qa1 {[%clk
0:00:10.4]} 53. Qf4 {[%clk 0:00:09.1]} 53... Qb2 {[%clk 0:00:10]} 54. Be4 {[%clk
0:00:09]} 54... Qd4 {[%clk 0:00:08.1]} 55. Qe3 {[%clk 0:00:08.6]} 55... Qa1
{[%clk 0:00:07.7]} 56. Bf3 {[%clk 0:00:08.8]} 56... Qb2 {[%clk 0:00:07.8]} 57.
Be2 {[%clk 0:00:09]} 57... Qa1 {[%clk 0:00:07.1]} 58. f4 {[%clk 0:00:09]} 58...
Qa8+ {[%clk 0:00:06.5]} 59. Kf2 {[%clk 0:00:09.1]} 59... Qa2 {[%clk 0:00:06.9]}
60. Qe5+ {[%clk 0:00:09]} 60... Kg8 {[%clk 0:00:07.2]} 61. Qb8+ {[%clk
0:00:09.6]} 61... Kg7 {[%clk 0:00:07.1]} 62. Qe5+ {[%clk 0:00:10.1]} 62... Kg8
{[%clk 0:00:07.4]} 63. Qd4 {[%clk 0:00:10]} 63... Qc2 {[%clk 0:00:06.5]} 64. Qd3
{[%clk 0:00:09.8]} 64... Qc5+ {[%clk 0:00:06.6]} 65. Qe3 {[%clk 0:00:10.4]}
65... Qc2 {[%clk 0:00:06.3]} 66. Ke1 {[%clk 0:00:10.8]} 66... Qb1+ {[%clk
0:00:06.1]} 67. Bd1 {[%clk 0:00:10.5]} 67... Qb4+ {[%clk 0:00:05.9]} 68. Ke2
{[%clk 0:00:10.2]} 68... Qb7 {[%clk 0:00:05.9]} 69. Bc2 {[%clk 0:00:08.6]} 69...
Qg2+ {[%clk 0:00:05.4]} 70. Kd3 {[%clk 0:00:09.1]} 70... Qd5+ {[%clk 0:00:04.7]}
71. Kc3 {[%clk 0:00:09.1]} 71... Qc6+ {[%clk 0:00:04.5]} 72. Kb2 {[%clk
0:00:09.7]} 72... Qb5+ {[%clk 0:00:04]} 73. Bb3 {[%clk 0:00:10.1]} 73... Qc6
{[%clk 0:00:04.1]} 74. Qc3 {[%clk 0:00:06.7]} 74... Qg2+ {[%clk 0:00:04.4]} 75.
Ka3 {[%clk 0:00:07]} 75... Qa8+ {[%clk 0:00:04.4]} 76. Ba4 {[%clk 0:00:06.5]}
76... Qe4 {[%clk 0:00:04.5]} 77. Bc6 {[%clk 0:00:05.8]} 77... Qe2 {[%clk
0:00:03.9]} 78. Kb4 {[%clk 0:00:06]} 78... Qd1 {[%clk 0:00:03.1]} 79. Ka5 {[%clk
0:00:06]} 79... Qd8+ {[%clk 0:00:03.3]} 80. Ka6 {[%clk 0:00:06.1]} 80... Qc8+
{[%clk 0:00:03.8]} 81. Kb6 {[%clk 0:00:06.4]} 81... Qb8+ {[%clk 0:00:03.9]} 82.
Bb7 {[%clk 0:00:06.9]} 82... Qd6+ {[%clk 0:00:04.2]} 83. Ka7 {[%clk 0:00:07.1]}
83... Qe7 {[%clk 0:00:03]} 84. Kb8 {[%clk 0:00:06.9]} 84... Qd8+ {[%clk
0:00:02.9]} 85. Qc8 {[%clk 0:00:05.9]} 85... Qxc8+ {[%clk 0:00:03.1]} 86. Kxc8
{[%clk 0:00:06.2]} 86... Kg7 {[%clk 0:00:03.6]} 87. Kd7 {[%clk 0:00:06.8]} 87...
Kf6 {[%clk 0:00:04.2]} 88. Be4 {[%clk 0:00:06.8]} 88... e5 {[%clk 0:00:04.3]}
89. Kd6 {[%clk 0:00:04.1]} 89... exf4 {[%clk 0:00:04]} 90. gxf4 {[%clk 0:00:05]}
90... Kg7 {[%clk 0:00:04.6]} 91. Ke7 {[%clk 0:00:05.6]} 91... f6 {[%clk
0:00:04.6]} 92. Bxg6 {[%clk 0:00:04]} 92... Kxg6 {[%clk 0:00:03.7]} 93. Ke6
{[%clk 0:00:04.7]} 93... Kg7 {[%clk 0:00:02.4]} 94. f5 {[%clk 0:00:04.6]} 94...
Kg8 {[%clk 0:00:01.9]} 95. Kxf6 {[%clk 0:00:05.1]} 95... Kf8 {[%clk 0:00:02.8]}
96. Kg5 {[%clk 0:00:05.7]} 96... Kg7 {[%clk 0:00:03.7]} 97. Kxh5 {[%clk
0:00:06.2]} 97... Kf6 {[%clk 0:00:04.5]} 98. Kg4 {[%clk 0:00:06.9]} 1-0